Workbook

Sheet English
B3: Tank Calculator
B4: Introduction
B5: Continuous level measurement by hydrostatic pressure utilizes the areal force generated by the height and density of the media and gravity. To accurately measure the filling height in tanks, choosing the fitting sensor parameters like accuracy and measuring range is crucial. This simple calculator is made to help you with the calculations and to assure the sensor parameters match the tank parameters. Additional this calculator helps you to minimize dregs and to monetize your possible saving with a CleverLevel level switch at the bottom of the tank.
B7: Tank type | D7: vertical tank
B8: Tank diameter | C8: Di | D8: 2 | E8: m
B9: =VLOOKUP(Chosen_tank_type,Tank_dependent,8,FALSE) -> Max. filling height | C9: =VLOOKUP(Chosen_tank_type,Tank_dependent,9,FALSE) -> hmax | D9: 30 | E9: =VLOOKUP(Chosen_tank_type,Tank_dependent,10,FALSE) -> m
B10: =VLOOKUP(Chosen_tank_type,Tank_dependent,2,FALSE) -> 0 | C10: =VLOOKUP(Chosen_tank_type,Tank_dependent,3,FALSE) -> 0 | E10: =VLOOKUP(Chosen_tank_type,Tank_dependent,4,FALSE) -> 0
B12: Media | D12: water | G12: =D12*100*60 ->  | H12: cm/min
B13: Media density | C13: ρ | D13: =VLOOKUP(D12,Tabelle2!F7:G9,2,FALSE) -> 999.975 | E13: kg/m3 | G13: =D13/10 -> 99.9975 | H13: cm
B15: Sensor Accuracy (20 °C) (includes linearity, hysteresis, repeatability, error of span and zero point according limit point adjustment) | D15: 1 | E15: %
B18: Tank volume | C18: V | D18: =VLOOKUP(Chosen_tank_type,Tank_dependent,5,FALSE) -> 94.24777961 | E18: m3
B20: Max. pressure at tank bottom | C20: pmax | D20: =VLOOKUP(Chosen_tank_type,Tank_dependent,6,FALSE) -> 2.942926425 | E20: bar
B21: Sensor measuring range | D21: =INDEX(Pressure_ranges,MATCH(Max_pressure,Upper_pressure_range,-1),3) -> 0 ... 4 | E21: bar | I21: =CONCATENATE("Baumer ordering code: ",INDEX(Tabelle2!A1:C22,MATCH(English!D20,Tabelle2!A1:A22,-1),2)) -> Baumer ordering code: PBMH, PP20H, PBMN flush:B19; PFMH:BC3
B23: Max. measuring error | D23: =(INDEX(Pressure_ranges,MATCH(Max_pressure,Upper_pressure_range,-1),1))*Sensor_accuracy*10^-2 -> 0.04 | E23: bar
D24: =Error_pressure*10^8/(Media_density*9.813) -> 407.6327323 | E24: mm
D25: =VLOOKUP(Chosen_tank_type,Tank_dependent,7,FALSE) -> 1280.615997 | E25: l
B29: Number of CIP cycles per day | C29: # | D29: 0.2 | E29: times per day
B30: Number of production days per year | C30: # | D30: 200
B32: Loss without CleverLevel | D32: =D25*D29 -> 256.1231995 | E32: l/day | I32: =D32*D30 -> 51224.63989 | J32: l/year
B33: Loss with CleverLevel | D33: 0 | E33: l/day | I33: =D33*D30 -> 0 | J33: l/year
B35: Difference (Savings) | D35: =D32-D33 -> 256.1231995 | E35: l/day | I35: =I32-I33 -> 51224.63989 | J35: l/year
B37: Cost of Media | D37: 0.3 | E37: Euro/l
B38: Total Cost | D38: =D35*D37 -> 76.83695984 | E38: €/day | I38: =I35*D37 -> 15367.39197 | J38: €/year

Sheet Tabelle2 (hidden)
A1: 400 | B1: PBMN flush:B38 | C1: 0 ... 400 | E1: Vertikaler Tank | F1: vertical tank | J1: =((Tank_diameter)^2/4)*PI()*Max_filling_height -> 94.24777961 | K1: =(Max_filling_height*Media_density*9.81)*10^-5 -> 2.942926425 | L1: =((Tank_diameter)^2/4)*PI()*Error_height -> 1280.615997 | M1: Max. filling height | N1: hmax | O1: m
A2: 100 | B2: PBMN flush:B31 | C2: 0 ... 100 | E2: Horizontaler Tank | F2: horizontal Tank | G2: Tank lenght | H2: L | I2: m | J2: =((Tank_diameter^2)/4)*Tank_length*(ACOS(((Tank_diameter/2)-Tank_diameter)/(Tank_diameter/2))-(((Tank_diameter/2)-Tank_diameter)*((SQRT(2*(Tank_diameter/2)*Tank_diameter-(Tank_diameter^2)))/((Tank_diameter/2)^2)))) -> 0 | K2: =(Tank_diameter*Media_density*9.81)*10^-5 -> 0.196195095 | L2: =(10^3)*(((Tank_diameter^2)/4)*Tank_length*(ACOS(((Tank_diameter/2)-(Error_height*10^-3))/(Tank_diameter/2))-(((Tank_diameter/2)-(Error_height*10^-3))*((SQRT(2*(Tank_diameter/2)*(Error_height*10^-3)-((Error_height*10^-3)^2)))/((Tank_diameter/2)^2))))) -> 0
A3: 68 | B3: PFMH:BC6 | C3: 0 … 68
A4: 40 | B4: PBMH, PP20H, PBMN flush:B27; PFMH:BC6 | C4: 0 ... 40
A5: 34 | B5: PFMH:BC5 | C5: 0 … 34
A6: 25 | B6: PBMH, PP20H, PBMN flush:B26; PFMH:BC5 | C6: 0 ... 25
A7: 20 | B7: PBMH, PP20H, PBMN flush:B25; PFMH:BC4 | C7: 0 ... 20 | E7: Wasser | F7: water | G7: 999.975 | K7: 1 | M7: PP20H
A8: 16 | B8: PBMH, PP20H, PBMN flush:B24; PFMH:BC4 | C8: 0 ... 16 | E8: Milch | F8: milk | G8: 1030 | K8: 0.5 | M8: PP20H | N8: PBMN flush
A9: 10 | B9: PBMH, PP20H, PBMN flush:B22; PFMH:BC4 | C9: 0 ... 10 | E9: Olivenöl | F9: olive oil | G9: 910 | K9: 0.25 | L9: PBMH | N9: PBMN flush | O9: PFMH
A10: 6 | B10: PBMH, PP20H, PBMN flush:B20; PFMH:BC4 | C10: 0 ... 6 | K10: 0.1 | L10: PBMH | N10: PBMN flush | O10: PFMH
A11: 5 | B11: PFMH:BC3 | C11: 0 … 5
A12: 4 | B12: PBMH, PP20H, PBMN flush:B19; PFMH:BC3 | C12: 0 ... 4
A13: 2.5 | B13: PBMH, PP20H and PBMN flush:B18; PFMH:BC3 | C13: 0 ... 2,5
A14: 2 | B14: PBMH, PP20H, PBMN flush:B17; PFMH:BC3 | C14: 0 ... 2
A15: 1.6 | B15: PBMH, PP20H, PBMN flush:B16; PFMH:BC3 | C15: 0 ... 1,6
A16: 1 | B16: PBMH, PP20H, PBMN flush:B15 PFMH:BC2 | C16: 0 ... 1
A17: 0.6 | B17: PBMH, PP20H, PBMN flush:B12; PFMH:BC2 | C17: 0 ... 0,6
A18: 0.4 | B18: PBMH, PP20H, PBMN flush:B11; PFMH:BC2 | C18: 0 ... 0,4
A19: 0.345 | B19: PFMH:BC1 | C19: 0 ... 0,345
A20: 0.25 | B20: PBMH, PBMN flush:B10; PFMH:BC1 | C20: 0 ... 0,25
A21: 0.16 | B21: PBMH, PBMN flush:B09; PFMH:BC1 | C21: 0 ... 0,16
A22: 0.1 | B22: PBMH, PBMN flush:B08; PFMH:BC1 | C22: 0 ... 0,1
